fUST/lending_fUST_20240707
["ID","MTS","AMOUNT","RATE_DAILY","PERIOD"]
[331407096,1720348253873,-500.6,0.00046575,120]
[331407097,1720348253883,-500.0,0.00046575,120]
[331407098,1720348253893,-1990.29,0.00046575,120]
[331407099,1720348253902,-500.0,0.00046575,120]
[331407100,1720348253912,-500.0,0.00046575,120]
[331407101,1720348253921,-500.0,0.00046575,120]
[331407102,1720348253931,-1014.07,0.00046575,120]
[331407103,1720348253940,-1365.67,0.00046575,120]
[331407104,1720348253951,-500.0,0.00046575,120]
[331407105,1720348253960,-668.62,0.00046575,120]
[331407106,1720348253970,-693.64,0.00046575,120]
[331407107,1720348253979,-67758.47,0.00046575,120]
[331407108,1720348253988,-627.2,0.00046575,120]
[331407109,1720348253998,-780.73,0.00046575,120]
[331407110,1720348254007,-800.11,0.00046575,120]
[331407111,1720348254017,-1034.58,0.00046575,120]
[331407112,1720348254026,-1285.7,0.00046575,120]
[331407113,1720348254037,-508.27,0.00046575,120]
[331407114,1720348254047,-2445.93,0.00046575,120]
[331407115,1720348254056,-1752.72,0.00046575,120]
[331407116,1720348254067,-8208.23,0.00046575,120]
[331407117,1720348254076,-500.0,0.00046575,120]
[331407118,1720348254086,-4429.83,0.00046575,120]
[331407119,1720348254095,-4266.09,0.00046575,120]
[331407120,1720348254104,-500.0,0.00046575,120]
[331407121,1720348254114,-2704.38,0.00046575,120]
[331407122,1720348254124,-748.13,0.00046575,120]
[331407123,1720348254133,-1541.47,0.00046575,120]
[331407124,1720348254142,-183.08674398,0.00046575,120]
[331407125,1720348254153,-500.0,0.00046575,120]
[331407126,1720348254164,-924.03,0.00046575,120]
[331407127,1720348254178,-500.0,0.00046575,120]
[331407128,1720348254188,-500.0,0.00046575,120]
[331407129,1720348254198,-844.26,0.00046575,120]
[331407130,1720348254212,-500.0,0.00046575,120]
[331407131,1720348254222,-12793.66,0.00046575,120]
[331407132,1720348254232,-896.63,0.00046575,120]
[331407133,1720348254242,-618.83,0.00046575,120]
[331407134,1720348254255,-500.0,0.00046575,120]
[331407135,1720348254265,-7734.13,0.00046575,21]
[331407136,1720348254275,-6948.55,0.00046575,120]
[331407137,1720348254285,-2118.44,0.00046575,120]
[331407138,1720348254295,-1280.73,0.00046575,120]
[331407139,1720348254305,-500.0,0.00046575,120]
[331407140,1720348254315,-11105.94,0.00046575,120]
[331407141,1720348254324,-984.09,0.00046575,120]
[331407142,1720348254334,-500.0,0.00046575,120]
[331407143,1720348254344,-500.0,0.00046575,120]
[331407144,1720348254354,-772.24,0.00046575,120]
[331407145,1720348254364,-6036.83,0.00046575,120]
[331407146,1720348254374,-341.74461487,0.00046575,120]
[331407147,1720348254384,-2113.87,0.00046575,120]
[331407148,1720348254394,-15042.94,0.00046575,120]
[331407149,1720348254404,-887.89,0.00046575,120]
[331407150,1720348254414,-500.0,0.00046575,120]
[331407151,1720348254423,-1240.73,0.00046575,120]
[331407152,1720348254433,-500.0,0.00046575,120]
[331407153,1720348254442,-688.3,0.00046575,120]
[331407154,1720348254454,-600.4,0.00046575,120]
[331407155,1720348254463,-4477.61,0.00046575,120]
[331407156,1720348254473,-1561.9,0.00046575,120]
[331407157,1720348254483,-5599.32,0.00046575,120]
[331407158,1720348254492,-626.43,0.00046575,120]
[331407159,1720348254501,-2966.16,0.00046575,120]
[331407160,1720348254511,-500.0,0.00046575,120]
[331407161,1720348254520,-757.52,0.00046575,120]
[331407162,1720348254530,-1087.62,0.00046575,120]
[331407163,1720348254539,-500.0,0.00046575,120]
[331407164,1720348254548,-667.57,0.00046575,120]
[331407165,1720348254561,-500.0,0.00046575,120]
[331407166,1720348254570,-841.97,0.00046575,120]
[331407167,1720348254580,-1485.95,0.00046575,120]
[331407168,1720348254589,-500.0,0.00046575,120]
[331407169,1720348254598,-2654.48,0.00046575,120]
[331407170,1720348254608,-2654.48,0.00046575,120]
[331407171,1720348254617,-7224.58,0.00046575,120]
[331407172,1720348254626,-557.27632857,0.00046575,120]
[331407173,1720348254635,-500.0,0.00046575,120]
[331407174,1720348254645,-2906.61,0.00046575,120]
[331407175,1720348254654,-778.38,0.00046575,120]
[331407176,1720348254663,-500.0,0.00046575,120]
[331407177,1720348254673,-641.22,0.00046575,120]
[331407178,1720348254682,-677.83,0.00046575,120]
[331407179,1720348254691,-500.0,0.00046575,120]
[331407180,1720348254703,-950.32,0.00046575,120]
[331407181,1720348254713,-500.0,0.00046575,120]
[331407182,1720348254722,-791.08,0.00046575,120]
[331407183,1720348254732,-4029.35,0.00046575,120]
[331407184,1720348254741,-628.1304289,0.00046575,120]
[331407185,1720348254751,-3693.57,0.00046575,120]
[331407186,1720348254760,-1139.2,0.00046575,120]
[331407187,1720348254770,-679.83,0.00046575,120]
[331407188,1720348254779,-500.0,0.00046575,120]
[331407189,1720348254789,-681.62,0.00046575,120]
[331407190,1720348254799,-841.38,0.00046575,120]
[331407191,1720348254808,-19997.62,0.00046575,120]
[331407192,1720348254817,-218.89241421,0.00046575,120]
[331407193,1720348254827,-500.0,0.00046575,120]
[331407194,1720348254837,-500.0,0.00046575,120]
[331407195,1720348254846,-1478.86,0.00046575,120]
[331407196,1720348254856,-9165.57,0.00046575,120]
[331407197,1720348254865,-500.0,0.00046575,120]
[331407198,1720348254875,-500.0,0.00046575,120]
[331407199,1720348254884,-500.0,0.00046575,120]
[331407200,1720348254894,-2498.75,0.00046575,120]
[331407201,1720348254903,-500.0,0.00046575,120]
[331407202,1720348254914,-500.0,0.00046575,120]
[331407203,1720348254924,-1179.34,0.00046575,120]
[331407204,1720348254934,-500.0,0.00046575,120]
[331407205,1720348254944,-1048.51,0.00046575,120]
[331407206,1720348254956,-2474.14,0.00046575,120]
[331407207,1720348254967,-500.0,0.00046575,120]
[331407208,1720348254976,-587.02,0.00046575,120]
[331407209,1720348254990,-500.0,0.00046575,120]
[331407210,1720348255000,-500.0,0.00046575,30]
[331407211,1720348255011,-500.0,0.00046575,120]
[331407212,1720348255021,-3741.22,0.00046575,120]
[331407213,1720348255031,-531.11,0.00046575,120]
[331407214,1720348255040,-780.81,0.00046575,120]
[331407215,1720348255050,-2000.34,0.00046575,120]
[331407216,1720348255062,-500.0,0.00046575,120]
[331407217,1720348255072,-456.43626464,0.00046575,120]
[331407218,1720348255081,-500.0,0.00046575,120]
[331407219,1720348255092,-500.0,0.00046575,120]
[331407220,1720348255102,-19236.53,0.00046575,120]
[331407221,1720348255112,-500.0,0.00046575,120]
[331407222,1720348255122,-3413.69,0.00046575,120]
[331407223,1720348255132,-500.0,0.00046575,120]
[331407224,1720348255142,-1250.27,0.00046575,120]
[331407225,1720348255152,-500.0,0.00046575,120]
[331407226,1720348255167,-1121.56,0.00046575,120]
[331407227,1720348255178,-500.0,0.00046575,120]
[331407228,1720348255187,-500.0,0.00046575,120]
[331407229,1720348255198,-734.73,0.00046575,120]
[331407230,1720348255211,-1092.13,0.00046575,120]
[331407231,1720348255221,-597.2299739,0.00046575,120]
[331407232,1720348255231,-1828.14,0.00046575,120]
[331407233,1720348255241,-500.0,0.00046575,120]
[331407234,1720348255253,-2409.9,0.00046575,120]
[331407235,1720348255264,-1905.14,0.00046575,120]
[331407236,1720348255274,-882.47,0.00046575,120]
[331407237,1720348255283,-2825.71,0.00046575,120]
[331407238,1720348255294,-500.0,0.00046575,120]
[331407239,1720348255304,-639.95,0.00046575,120]
[331407240,1720348255315,-1399.76,0.00046575,120]
[331407241,1720348255324,-1122.0,0.00046575,120]
[331407242,1720348255334,-1122.0,0.00046575,120]
[331407243,1720348255344,-1802.35,0.00046575,120]
[331407244,1720348255354,-1426.86,0.00046575,120]
[331407245,1720348255364,-500.0,0.00046575,120]
[331407246,1720348255374,-1266.29,0.00046575,120]
[331407247,1720348255384,-500.0,0.00046575,120]
[331407248,1720348255394,-500.0,0.00046575,120]
[331407249,1720348255404,-500.0,0.00046575,120]
[331407250,1720348255414,-626.78,0.00046575,120]
[331407251,1720348255426,-500.0,0.00046575,120]
[331407252,1720348255437,-500.0,0.00046575,120]
[331407253,1720348255448,-943.8,0.00046575,120]
[331407254,1720348255459,-500.0,0.00046575,120]
[331407255,1720348255470,-2629.96,0.00046575,120]
[331407256,1720348255480,-1281.3,0.00046575,120]
[331407257,1720348255490,-309.16638386,0.00046575,120]
[331407258,1720348255500,-749.98,0.00046575,120]
[331407259,1720348255511,-500.0,0.00046575,120]
[331407260,1720348255521,-686.76,0.00046575,120]
[331407261,1720348255531,-1167.5,0.00046575,120]
[331407262,1720348255543,-818.05,0.00046575,120]
[331407263,1720348255552,-718.68,0.00046575,120]
[331407264,1720348255563,-2844.1,0.00046575,120]
[331407265,1720348255574,-500.0,0.00046575,21]
[331407266,1720348255584,-500.0,0.00046575,120]
[331407267,1720348255593,-500.0,0.00046575,120]
[331407268,1720348255603,-500.0,0.00046575,120]
[331407269,1720348255613,-23870.39,0.00046575,120]
[331407270,1720348255623,-730.55,0.00046575,120]
[331407271,1720348255633,-500.0,0.00046575,5]
[331407272,1720348255642,-506.03509581,0.00046575,5]
[331407273,1720348255652,-6366.89,0.00046575,120]
[331407274,1720348255662,-1500.0,0.00046575,120]
[331407275,1720348255671,-1500.0,0.00046575,120]
[331407276,1720348255681,-1500.0,0.00046575,120]
[331407277,1720348255691,-1500.0,0.00046575,120]
[331407278,1720348255701,-1500.0,0.00046575,120]
[331407279,1720348255711,-1500.0,0.00046575,120]
[331407280,1720348255721,-1500.0,0.00046575,120]
[331407281,1720348255731,-1500.0,0.00046575,120]
[331407282,1720348255741,-1500.0,0.00046575,120]
[331407283,1720348255751,-1500.0,0.00046575,120]
[331407284,1720348255760,-1500.0,0.00046575,120]
[331407285,1720348255771,-1511.96357403,0.00046575,120]
[331407286,1720348255781,-586.8636481,0.00046575,2]
[331407287,1720348255791,-1637.17905575,0.000466,30]
[331407288,1720348255801,-3690.41844062,0.000466,120]
[331407289,1720348255811,-1637.17905575,0.00046633,30]
[331407290,1720348255821,-452.8565937,0.00046671,30]
[331407291,1720348255831,-618.37780238,0.00046792,30]
[331407292,1720348255842,-155.49,0.000468,42]
[331407293,1720348255852,-1637.17905575,0.00046815,30]
[331407294,1720348255862,-151.0,0.00046822,120]
[331407295,1720348255872,-3104.26073298,0.00046844,30]
[331407296,1720348255882,-539.93,0.00046849,120]
[331407297,1720348255892,-863.71,0.00046849,120]
[331407298,1720348255902,-758.3,0.00046849,120]
[331407299,1720348255912,-2277.09,0.00046849,120]
[331407300,1720348255922,-500.0,0.00046849,120]
[331407301,1720348255932,-3622.16,0.00046849,120]
[331407302,1720348255941,-500.0,0.00046849,120]
[331407303,1720348255951,-4420.68,0.00046849,120]
[331407304,1720348255963,-2729.24,0.00046849,120]
[331407305,1720348255973,-1418.25,0.00046849,120]
[331407306,1720348255982,-2088.03,0.00046849,120]
[331407307,1720348255992,-28020.05,0.00046849,120]
[331407308,1720348256002,-500.0,0.00046849,120]
[331407309,1720348256011,-16482.27,0.00046849,120]
[331407310,1720348256021,-1928.91,0.00046849,120]
[331407311,1720348256066,-500.0,0.00046849,120]
[331407312,1720348256076,-500.0,0.00046849,120]
[331407313,1720348256086,-1391.73,0.00046849,120]
[331407314,1720348256095,-980.42,0.00046849,120]
[331407315,1720348256105,-500.0,0.00046849,120]
[331407316,1720348256114,-717.05,0.00046849,60]
[331407317,1720348256124,-500.0,0.00046849,120]
[331407318,1720348256133,-1322.06,0.00046849,120]
[331407319,1720348256143,-1100.84,0.00046849,120]
[331407320,1720348256152,-544.99,0.00046849,120]
[331407321,1720348256164,-500.0,0.00046849,120]
[331407322,1720348256178,-1098.97,0.00046849,120]
[331407323,1720348256187,-1343.21,0.00046849,120]
[331407324,1720348256196,-500.0,0.00046849,120]
[331407325,1720348256206,-501.73842543,0.00046849,120]
[331407326,1720348256216,-500.0,0.00046849,120]
[331407327,1720348256225,-515.16589376,0.00046849,120]
[331407328,1720348256234,-500.0,0.00046849,120]
[331407329,1720348256244,-500.0,0.00046849,120]
[331407330,1720348256256,-933.38,0.00046849,120]
[331407331,1720348256266,-538.12,0.00046849,120]
[331407332,1720348256277,-500.0,0.00046849,120]
[331407333,1720348256287,-500.0,0.00046849,120]
[331407334,1720348256296,-500.0,0.00046849,120]
[331407335,1720348256306,-347.8515027,0.00046849,120]
[331407336,1720348256316,-1587.98,0.00046849,120]
[331407337,1720348256326,-645.75,0.00046849,120]
[331407338,1720348256336,-1804.61,0.00046849,120]
[331407339,1720348256348,-561.70936842,0.00046849,120]
[331407340,1720348256357,-1400.55,0.00046849,120]
[331407341,1720348256366,-764.78,0.00046849,120]
[331407342,1720348256376,-638.28,0.00046849,120]
[331407343,1720348256385,-500.0,0.00046849,120]
[331407344,1720348256394,-993.07,0.00046849,120]
[331407345,1720348256404,-1084.46,0.00046849,120]
[331407346,1720348256413,-2280.31,0.00046849,120]
[331407347,1720348256422,-1460.56,0.00046849,120]
[331407348,1720348256431,-879.0,0.00046849,120]
[331407349,1720348256440,-500.0,0.00046849,120]
[331407350,1720348256449,-1174.74,0.00046849,120]
[331407351,1720348256460,-506.68,0.00046849,120]
[331407352,1720348256469,-547.7,0.00046849,120]
[331407353,1720348256478,-500.0,0.00046849,120]
[331407354,1720348256487,-1275.26,0.00046849,120]
[331407355,1720348256496,-500.0,0.00046849,120]
[331407356,1720348256505,-620.89,0.00046849,120]
[331407357,1720348256515,-2777.24,0.00046849,120]
[331407358,1720348256524,-1229.15,0.00046849,120]
[331407359,1720348256534,-590.79,0.00046849,120]
[331407360,1720348256543,-500.0,0.00046849,120]
[331407361,1720348256554,-620.32,0.00046849,120]
[331407362,1720348256565,-1466.22,0.00046849,120]
[331407363,1720348256574,-1166.72,0.00046849,120]
[331407364,1720348256583,-608.36,0.00046849,120]
[331407365,1720348256593,-500.0,0.00046849,120]
[331407366,1720348256603,-500.0,0.00046849,120]
[331407367,1720348256612,-1741.41,0.00046849,120]
[331407368,1720348256621,-529.53,0.00046849,120]
[331407369,1720348256630,-500.0,0.00046849,120]
[331407370,1720348256639,-500.0,0.00046849,120]
[331407371,1720348256649,-500.0,0.00046849,120]
[331407372,1720348256658,-1189.37,0.00046849,120]
[331407373,1720348256667,-500.0,0.00046849,120]
[331407374,1720348256677,-526.44251316,0.00046849,120]
[331407375,1720348256687,-500.0,0.00046849,120]
[331407376,1720348256696,-500.0,0.00046849,120]
[331407377,1720348256706,-844.82,0.00046849,120]
[331407378,1720348256716,-500.0,0.00046849,120]
[331407379,1720348256725,-500.0,0.00046849,120]
[331407380,1720348256734,-731.34,0.00046849,120]
[331407381,1720348256744,-1170.99,0.00046849,120]
[331407382,1720348256754,-990.62,0.00046849,120]
[331407383,1720348256763,-760.13,0.00046849,120]
[331407384,1720348256773,-1274.08,0.00046849,120]
[331407385,1720348256782,-500.0,0.00046849,120]
[331407386,1720348256791,-806.21,0.00046849,120]
[331407387,1720348256800,-278.5748665,0.00046849,120]
[331407388,1720348256810,-500.0,0.00046849,120]
[331407389,1720348256820,-834.54,0.00046849,120]
[331407390,1720348256829,-886.97,0.00046849,120]
[331407391,1720348256839,-19633.38,0.00046849,120]
[331407392,1720348256849,-500.0,0.00046849,120]
[331407393,1720348256859,-500.0,0.00046849,120]
[331407394,1720348256869,-868.77,0.00046849,120]
[331407395,1720348256880,-1022.9,0.00046849,120]
[331407396,1720348256890,-997.77,0.00046849,120]
[331407397,1720348256899,-555.67,0.00046849,120]
[331407398,1720348256910,-3272.31,0.00046849,120]
[331407399,1720348256920,-500.0,0.00046849,120]
[331407400,1720348256937,-764.61,0.00046849,120]
[331407401,1720348256951,-500.0,0.00046849,120]
[331407402,1720348256962,-500.0,0.00046849,120]
[331407403,1720348256972,-500.0,0.00046849,120]
[331407404,1720348256982,-515.08,0.00046849,120]
[331407405,1720348256992,-1472.32,0.00046849,7]
[331407406,1720348257002,-539.31,0.00046849,120]
[331407407,1720348257012,-529.59,0.00046849,120]
[331407408,1720348257021,-2352.27,0.00046849,120]
[331407409,1720348257031,-777.74,0.00046849,120]
[331407410,1720348257042,-500.0,0.00046849,120]
[331407411,1720348257051,-500.0,0.00046849,120]
[331407412,1720348257061,-516.01,0.00046849,120]
[331407413,1720348257070,-671.8,0.00046849,120]
[331407414,1720348257080,-2174.43,0.00046849,120]
[331407415,1720348257090,-6995.33,0.00046849,120]
[331407416,1720348257099,-1875.52,0.00046849,120]
[331407417,1720348257109,-1180.04,0.00046849,120]
[331407418,1720348257118,-500.6,0.00046849,120]
[331407419,1720348257127,-500.0,0.00046849,120]
[331407420,1720348257136,-1990.29,0.00046849,120]
[331407421,1720348257145,-500.0,0.00046849,120]
[331407422,1720348257155,-500.0,0.00046849,120]
[331407423,1720348257165,-500.0,0.00046849,120]
[331407424,1720348257179,-1014.07,0.00046849,120]
[331407425,1720348257188,-500.0,0.00046849,120]
[331407426,1720348257197,-668.62,0.00046849,120]
[331407427,1720348257208,-693.64,0.00046849,120]
[331407428,1720348257218,-67758.47,0.00046849,120]
[331407429,1720348257227,-1365.67,0.00046849,120]
[331407430,1720348257236,-627.2,0.00046849,120]
[331407431,1720348257247,-780.73,0.00046849,120]
[331407432,1720348257256,-800.11,0.00046849,120]
[331407433,1720348257266,-1034.58,0.00046849,120]
[331407434,1720348257275,-1285.7,0.00046849,120]
[331407435,1720348257284,-508.27,0.00046849,120]
[331407436,1720348257293,-2445.93,0.00046849,120]
[331407437,1720348257302,-1752.72,0.00046849,120]
[331407438,1720348257311,-8208.23,0.00046849,120]
[331407439,1720348257320,-4266.09,0.00046849,120]
[331407440,1720348257330,-4429.83,0.00046849,120]
[331407441,1720348257339,-500.0,0.00046849,120]
[331407442,1720348257347,-2704.38,0.00046849,120]
[331407443,1720348257357,-748.13,0.00046849,120]
[331407444,1720348257366,-1541.47,0.00046849,120]
[331407445,1720348257375,-500.0,0.00046849,120]
[331407446,1720348257384,-924.03,0.00046849,120]
[331407447,1720348257393,-500.0,0.00046849,120]
[331407448,1720348257402,-500.0,0.00046849,120]
[331407449,1720348257411,-844.26,0.00046849,120]
[331407450,1720348257421,-500.0,0.00046849,120]
[331407451,1720348257430,-12793.66,0.00046849,120]
[331407452,1720348257439,-618.83,0.00046849,120]
[331407453,1720348257448,-896.63,0.00046849,120]
[331407454,1720348257458,-7734.13,0.00046849,21]
[331407455,1720348257467,-500.0,0.00046849,120]
[331407456,1720348257476,-6948.55,0.00046849,120]
[331407457,1720348257486,-2118.44,0.00046849,120]
[331407458,1720348257495,-1280.73,0.00046849,120]
[331407459,1720348257504,-500.0,0.00046849,120]
[331407460,1720348257513,-11105.94,0.00046849,120]
[331407461,1720348257522,-984.09,0.00046849,120]
[331407462,1720348257531,-500.0,0.00046849,120]
[331407463,1720348257540,-500.0,0.00046849,120]
[331407464,1720348257549,-772.24,0.00046849,120]
[331407465,1720348257560,-6036.83,0.00046849,120]
[331407466,1720348257573,-15042.94,0.00046849,120]
[331407467,1720348257584,-887.89,0.00046849,120]
[331407468,1720348257593,-500.0,0.00046849,120]
[331407469,1720348257602,-1240.73,0.00046849,120]
[331407470,1720348257611,-500.0,0.00046849,120]
[331407471,1720348257621,-2113.87,0.00046849,120]
[331407472,1720348257630,-688.3,0.00046849,120]
[331407473,1720348257639,-600.4,0.00046849,120]
[331407474,1720348257649,-4477.61,0.00046849,120]
[331407475,1720348257658,-1561.9,0.00046849,120]
[331407476,1720348257667,-5599.32,0.00046849,120]
[331407477,1720348257676,-626.43,0.00046849,120]
[331407478,1720348257685,-2966.16,0.00046849,120]
[331407479,1720348257695,-500.0,0.00046849,120]
[331407480,1720348257704,-757.52,0.00046849,120]
[331407481,1720348257713,-1087.62,0.00046849,120]
[331407482,1720348257723,-517.6178912,0.00046849,120]
[331407483,1720348257732,-667.57,0.00046849,120]
[331407484,1720348257741,-500.0,0.00046849,120]
[331407485,1720348257750,-841.97,0.00046849,120]
[331407486,1720348257760,-1485.95,0.00046849,120]
[331407487,1720348257769,-500.0,0.00046849,120]
[331407488,1720348257778,-2654.48,0.00046849,120]
[331407489,1720348257787,-2654.48,0.00046849,120]
[331407490,1720348257797,-7224.58,0.00046849,120]
[331407491,1720348257806,-500.0,0.00046849,120]
[331407492,1720348257815,-2906.61,0.00046849,120]
[331407493,1720348257825,-778.38,0.00046849,120]
[331407494,1720348257834,-500.0,0.00046849,120]
[331407495,1720348257844,-641.22,0.00046849,120]
[331407496,1720348257853,-677.83,0.00046849,120]
[331407497,1720348257862,-443.87038276,0.00046849,120]
[331407498,1720348257871,-950.32,0.00046849,120]
[331407499,1720348257880,-500.0,0.00046849,120]
[331407500,1720348257890,-791.08,0.00046849,120]
[331407501,1720348257899,-4029.35,0.00046849,120]
[331407502,1720348257908,-3693.57,0.00046849,120]
[331407503,1720348257918,-1139.2,0.00046849,120]
[331407504,1720348257927,-679.83,0.00046849,120]
[331407505,1720348257937,-500.0,0.00046849,120]
[331407506,1720348257946,-681.62,0.00046849,120]
[331407507,1720348257955,-841.38,0.00046849,120]
[331407508,1720348257964,-19997.62,0.00046849,120]
[331407509,1720348257974,-500.0,0.00046849,120]
[331407510,1720348257984,-500.0,0.00046849,120]
[331407511,1720348257993,-1478.86,0.00046849,120]
[331407512,1720348258002,-9165.57,0.00046849,120]
[331407513,1720348258011,-500.0,0.00046849,120]
[331407514,1720348258020,-500.0,0.00046849,120]
[331407515,1720348258029,-500.0,0.00046849,120]
[331407516,1720348258039,-500.0,0.00046849,120]
[331407517,1720348258048,-2498.75,0.00046849,120]
[331407518,1720348258057,-598.89502149,0.00046849,120]
[331407519,1720348258066,-1179.34,0.00046849,120]
[331407520,1720348258075,-500.0,0.00046849,120]
[331407521,1720348258084,-1048.51,0.00046849,120]
[331407522,1720348258093,-2474.14,0.00046849,120]
[331407523,1720348258103,-500.0,0.00046849,120]
[331407524,1720348258112,-587.02,0.00046849,120]
[331407525,1720348258121,-500.0,0.00046849,120]
[331407526,1720348258131,-500.0,0.00046849,30]
[331407527,1720348258139,-500.0,0.00046849,120]
[331407528,1720348258149,-3741.22,0.00046849,120]
[331407529,1720348258159,-531.11,0.00046849,120]
[331407530,1720348258171,-780.81,0.00046849,120]
[331407531,1720348258181,-2000.34,0.00046849,120]
[331407532,1720348258190,-500.0,0.00046849,120]
[331407533,1720348258199,-500.0,0.00046849,120]
[331407534,1720348258211,-500.0,0.00046849,120]
[331407535,1720348258220,-500.0,0.00046849,120]
[331407536,1720348258230,-19236.53,0.00046849,120]
[331407537,1720348258242,-3413.69,0.00046849,120]
[331407538,1720348258253,-500.0,0.00046849,120]
[331407539,1720348258262,-1250.27,0.00046849,120]
[331407540,1720348258272,-500.0,0.00046849,120]
[331407541,1720348258281,-1121.56,0.00046849,120]
[331407542,1720348258291,-500.0,0.00046849,120]
[331407543,1720348258301,-500.0,0.00046849,120]
[331407544,1720348258310,-734.73,0.00046849,120]
[331407545,1720348258320,-1092.13,0.00046849,120]
[331407546,1720348258329,-1828.14,0.00046849,120]
[331407547,1720348258338,-500.0,0.00046849,120]
[331407548,1720348258347,-2409.9,0.00046849,120]
[331407549,1720348258357,-1905.14,0.00046849,120]
[331407550,1720348258367,-882.47,0.00046849,120]
[331407551,1720348258376,-2825.71,0.00046849,120]
[331407552,1720348258385,-500.0,0.00046849,120]
[331407553,1720348258395,-639.95,0.00046849,120]
[331407554,1720348258404,-1399.76,0.00046849,120]
[331407555,1720348258413,-1122.0,0.00046849,120]
[331407556,1720348258422,-1122.0,0.00046849,120]
[331407557,1720348258431,-1802.35,0.00046849,120]
[331407558,1720348258440,-500.0,0.00046849,120]
[331407559,1720348258449,-1266.29,0.00046849,120]
[331407560,1720348258460,-500.0,0.00046849,120]
[331407561,1720348258469,-536.83,0.00046849,120]
[331407562,1720348258478,-500.0,0.00046849,120]
[331407563,1720348258487,-626.78,0.00046849,120]
[331407564,1720348258497,-500.0,0.00046849,120]
[331407565,1720348258507,-188.11,0.00046849,120]
[331407566,1720348258516,-943.8,0.00046849,120]
[331407567,1720348258525,-500.0,0.00046849,120]
[331407568,1720348258534,-2629.96,0.00046849,120]
[331407569,1720348258543,-1281.3,0.00046849,120]
[331407570,1720348258553,-749.98,0.00046849,120]
[331407571,1720348258564,-500.0,0.00046849,120]
[331407572,1720348258574,-686.76,0.00046849,120]
[331407573,1720348258583,-1167.5,0.00046849,120]
[331407574,1720348258592,-818.05,0.00046849,120]
[331407575,1720348258602,-718.68,0.00046849,120]
[331407576,1720348258611,-2844.1,0.00046849,120]
[331407577,1720348258621,-500.0,0.00046849,21]
[331407578,1720348258631,-500.0,0.00046849,120]
[331407579,1720348258640,-500.0,0.00046849,120]
[331407580,1720348258650,-500.0,0.00046849,120]
[331407581,1720348258659,-23870.39,0.00046849,120]
[331407582,1720348258668,-730.55,0.00046849,120]
[331407583,1720348258678,-300.0,0.000469,30]
[331407584,1720348258694,-1637.17905575,0.00046934,30]
[331407585,1720348258707,-159.00788378,0.00046951,30]
[331407586,1720348258718,-10000.0,0.00047,47]
[331407587,1720348258728,-32104.27566161,0.00047,30]
[331407588,1720348258739,-3000.0,0.00047,2]
[331407589,1720348258749,-3104.26073298,0.00047069,30]
[331407590,1720348258758,-159.00788378,0.00047078,30]
[331407591,1720348258768,-539.93,0.00047123,120]
[331407592,1720348258777,-863.71,0.00047123,120]
[331407593,1720348258787,-758.3,0.00047123,120]
[331407594,1720348258796,-2277.09,0.00047123,120]
[331407595,1720348258806,-500.0,0.00047123,120]